{"text_format":"3","workbook":"xlsx","n_sheets":1,"sheets":["Tarjous"],"not_rendered":{"images":1,"defined_names":20},"read":"whole","date_system":"1900"}

{"sheet":"Tarjous","index":0,"n_rows":39,"n_cols":7,"rows_kept":39,"merged":[[0,1,3,1],[0,3,0,6],[1,4,1,6],[2,4,2,6],[32,3,35,4],[36,3,36,6],[37,3,37,5],[38,3,38,5]]}
[{"$nulls":3},"RAKENNUSTYÖTARJOUS"]
[{"$nulls":3},"Yrityksen nimi","| Kirjoita yrityksen katuosoite tähän soluun"]
[{"$nulls":3},"Puhelin","| Kirjoita yrityksen faksinumero ja yhteyshenkilön sähköpostiosoite tähän soluun"]
[{"$nulls":3},"MÄÄRÄ","KUVAUS","YKSIKKÖHINTA","SUMMA"]
[null,"ASIAKAS",null,10,"Tuote 1",{"v":165,"d":"165.00 €"},{"$f":"IFERROR(Rivikohdat[[#This Row],[MÄÄRÄ]]*Rivikohdat[[#This Row],[YKSIKKÖHINTA]], \"\")","v":{"v":1650,"d":"1,650.00 €"}}]
[null,"Kirjoita asiakkaan nimi tähän soluun",null,21,"Kohde 2",{"v":40,"d":"40.00 €"},{"$f":"IFERROR(Rivikohdat[[#This Row],[MÄÄRÄ]]*Rivikohdat[[#This Row],[YKSIKKÖHINTA]], \"\")","v":{"v":840,"d":"840.00 €"}}]
[null,"ARVION NRO",null,5,"Kohde 3",{"v":10.5,"d":"10.50 €"},{"$f":"IFERROR(Rivikohdat[[#This Row],[MÄÄRÄ]]*Rivikohdat[[#This Row],[YKSIKKÖHINTA]], \"\")","v":{"v":52.5,"d":"52.50 €"}}]
[null,"C-1234",null,164,"Nimike 4",{"v":2.75,"d":"2.75 €"},{"$f":"IFERROR(Rivikohdat[[#This Row],[MÄÄRÄ]]*Rivikohdat[[#This Row],[YKSIKKÖHINTA]], \"\")","v":{"v":451,"d":"451.00 €"}}]
[null,"PÄIVÄMÄÄRÄ",null,6,"Nimike 5",{"v":12,"d":"12.00 €"},{"$f":"IFERROR(Rivikohdat[[#This Row],[MÄÄRÄ]]*Rivikohdat[[#This Row],[YKSIKKÖHINTA]], \"\")","v":{"v":72,"d":"72.00 €"}}]
[null,{"$f":"TODAY()","v":"2018-11-15"},null,18,"Nimike 6",{"v":5.5,"d":"5.50 €"},{"$f":"IFERROR(Rivikohdat[[#This Row],[MÄÄRÄ]]*Rivikohdat[[#This Row],[YKSIKKÖHINTA]], \"\")","v":{"v":99,"d":"99.00 €"}}]
[null,"OSOITE",null,1,"Nimike 7",{"v":25,"d":"25.00 €"},{"$f":"IFERROR(Rivikohdat[[#This Row],[MÄÄRÄ]]*Rivikohdat[[#This Row],[YKSIKKÖHINTA]], \"\")","v":{"v":25,"d":"25.00 €"}}]
[null,"Kirjoita asiakkaan katuosoite tähän soluun",{"$nulls":4},{"$f":"IFERROR(Rivikohdat[[#This Row],[MÄÄRÄ]]*Rivikohdat[[#This Row],[YKSIKKÖHINTA]], \"\")","v":{"v":0,"d":"0.00 €"}}]
[null,"POSTINUMERO/POSTITOIMIPAIKKA",{"$nulls":4},{"$f":"IFERROR(Rivikohdat[[#This Row],[MÄÄRÄ]]*Rivikohdat[[#This Row],[YKSIKKÖHINTA]], \"\")","v":{"v":0,"d":"0.00 €"}}]
[null,"Kirjoita asiakkaan postinumero ja postitoimipaikka tähän soluun",{"$nulls":4},{"$f":"IFERROR(Rivikohdat[[#This Row],[MÄÄRÄ]]*Rivikohdat[[#This Row],[YKSIKKÖHINTA]], \"\")","v":{"v":0,"d":"0.00 €"}}]
[null,"PUHELIN",{"$nulls":4},{"$f":"IFERROR(Rivikohdat[[#This Row],[MÄÄRÄ]]*Rivikohdat[[#This Row],[YKSIKKÖHINTA]], \"\")","v":{"v":0,"d":"0.00 €"}}]
[null,"Kirjoita asiakkaan puhelinnumero tähän soluun",{"$nulls":4},{"$f":"IFERROR(Rivikohdat[[#This Row],[MÄÄRÄ]]*Rivikohdat[[#This Row],[YKSIKKÖHINTA]], \"\")","v":{"v":0,"d":"0.00 €"}}]
[null,"SÄHKÖPOSTI",{"$nulls":4},{"$f":"IFERROR(Rivikohdat[[#This Row],[MÄÄRÄ]]*Rivikohdat[[#This Row],[YKSIKKÖHINTA]], \"\")","v":{"v":0,"d":"0.00 €"}}]
[null,"Kirjoita asiakkaan sähköpostiosoite tähän soluun",{"$nulls":4},{"$f":"IFERROR(Rivikohdat[[#This Row],[MÄÄRÄ]]*Rivikohdat[[#This Row],[YKSIKKÖHINTA]], \"\")","v":{"v":0,"d":"0.00 €"}}]
[null,"MYYJÄ",{"$nulls":4},{"$f":"IFERROR(Rivikohdat[[#This Row],[MÄÄRÄ]]*Rivikohdat[[#This Row],[YKSIKKÖHINTA]], \"\")","v":{"v":0,"d":"0.00 €"}}]
[null,"Kirjoita myyjän nimi tähän soluun",{"$nulls":4},{"$f":"IFERROR(Rivikohdat[[#This Row],[MÄÄRÄ]]*Rivikohdat[[#This Row],[YKSIKKÖHINTA]], \"\")","v":{"v":0,"d":"0.00 €"}}]
[null,"PROJEKTI",{"$nulls":4},{"$f":"IFERROR(Rivikohdat[[#This Row],[MÄÄRÄ]]*Rivikohdat[[#This Row],[YKSIKKÖHINTA]], \"\")","v":{"v":0,"d":"0.00 €"}}]
[null,"Kirjoita projektin nimi tähän soluun",{"$nulls":4},{"$f":"IFERROR(Rivikohdat[[#This Row],[MÄÄRÄ]]*Rivikohdat[[#This Row],[YKSIKKÖHINTA]], \"\")","v":{"v":0,"d":"0.00 €"}}]
[null,"VALMISTELIJA:",{"$nulls":4},{"$f":"IFERROR(Rivikohdat[[#This Row],[MÄÄRÄ]]*Rivikohdat[[#This Row],[YKSIKKÖHINTA]], \"\")","v":{"v":0,"d":"0.00 €"}}]
[null,"Kirjoita valmistelijan nimi tähän soluun",{"$nulls":4},{"$f":"IFERROR(Rivikohdat[[#This Row],[MÄÄRÄ]]*Rivikohdat[[#This Row],[YKSIKKÖHINTA]], \"\")","v":{"v":0,"d":"0.00 €"}}]
[null,"HUOMIO",{"$nulls":4},{"$f":"IFERROR(Rivikohdat[[#This Row],[MÄÄRÄ]]*Rivikohdat[[#This Row],[YKSIKKÖHINTA]], \"\")","v":{"v":0,"d":"0.00 €"}}]
[null,"Kirjoita nimi/osoite/ehtotus tähän soluun",{"$nulls":4},{"$f":"IFERROR(Rivikohdat[[#This Row],[MÄÄRÄ]]*Rivikohdat[[#This Row],[YKSIKKÖHINTA]], \"\")","v":{"v":0,"d":"0.00 €"}}]
[null,"MAKSUEHDOT",{"$nulls":4},{"$f":"IFERROR(Rivikohdat[[#This Row],[MÄÄRÄ]]*Rivikohdat[[#This Row],[YKSIKKÖHINTA]], \"\")","v":{"v":0,"d":"0.00 €"}}]
[null,"30 pv netto",{"$nulls":4},{"$f":"IFERROR(Rivikohdat[[#This Row],[MÄÄRÄ]]*Rivikohdat[[#This Row],[YKSIKKÖHINTA]], \"\")","v":{"v":0,"d":"0.00 €"}}]
[null,"ERÄPÄIVÄ",{"$nulls":4},{"$f":"IFERROR(Rivikohdat[[#This Row],[MÄÄRÄ]]*Rivikohdat[[#This Row],[YKSIKKÖHINTA]], \"\")","v":{"v":0,"d":"0.00 €"}}]
[null,{"$f":"TODAY()+30","v":"2018-12-15"},{"$nulls":4},{"$f":"IFERROR(Rivikohdat[[#This Row],[MÄÄRÄ]]*Rivikohdat[[#This Row],[YKSIKKÖHINTA]], \"\")","v":{"v":0,"d":"0.00 €"}}]
[{"$nulls":5},"VÄLISUMMA",{"$f":"SUBTOTAL(109,Rivikohdat[SUMMA])","v":{"v":3189.5,"d":"3,189.50 €"}}]
[{"$nulls":3},"TÄMÄ TARJOUS SISÄLTÄÄ MAINITUT EHDOT:",null,"VEROPROSENTTI ",{"v":0.0775,"d":"7.75%"}]
[{"$nulls":3},"Kirjoita ehdot tähän",null,"ALV ",{"$f":"IFERROR(Välisumma*Veroprosentti, \"\")","v":{"v":247.18625,"d":"247.19 €"}}]
[{"$nulls":5},"MUUT "]
[{"$nulls":5},"SUMMA",{"$f":"IFERROR(Välisumma+G33+Muut, \"\")","v":{"v":3436.68625,"d":"3,436.69 €"}}]
[]
[{"$nulls":3},"Hyväksy tarjous allekirjoittamalla:"]
[]
[{"$nulls":3},"Valtuutettu edustaja",null,null,"Päivämäärä"]